bitfinex/quotes_BTCUSD_20251015
["timestamp","ask_amount","ask_price","bid_price","bid_amount"]
[1760571965771,1.40616798,111120.0,111110.0,0.11374793]
[1760571966449,1.38935646,111120.0,111110.0,0.11374793]
[1760571966662,1.38094884,111120.0,111110.0,0.11374793]
[1760571966878,1.38935825,111120.0,111110.0,0.11374793]
[1760571967483,1.40617979,111120.0,111110.0,0.11374793]
[1760571968279,1.40617981,111120.0,111110.0,0.11374793]
[1760571968872,1.40617981,111120.0,111110.0,0.00058793]
[1760571969086,1.40617981,111120.0,111110.0,0.11374793]
[1760571969289,1.81119991,111120.0,111110.0,0.00058793]
[1760571969857,1.81119991,111120.0,111110.0,0.05910793]
[1760571970007,1.81119991,111120.0,111110.0,0.11374793]
[1760571970415,1.81201331,111120.0,111110.0,0.00058793]
[1760571970619,1.8372916,111120.0,111110.0,0.11374793]
[1760571970862,1.86435416,111120.0,111110.0,0.00058793]
[1760571971063,1.86535416,111120.0,111110.0,0.11374793]
[1760571971498,1.86535416,111120.0,111110.0,0.00058793]
[1760571971646,1.4789042,111120.0,111110.0,0.11374793]
[1760571972051,1.4789042,111120.0,111110.0,0.00058793]
[1760571972267,1.4789042,111120.0,111110.0,0.11374793]
[1760571972910,1.06620508,111120.0,111110.0,0.11374793]
[1760571973155,1.42756335,111120.0,111110.0,0.11374793]
[1760571973661,1.42756335,111120.0,111110.0,0.00058793]
[1760571974157,1.42756335,111120.0,111110.0,0.11374793]
[1760571976060,1.42756335,111120.0,111110.0,0.00058793]
[1760571976541,1.81319991,111120.0,111110.0,0.11374793]
[1760571977030,1.42756335,111120.0,111110.0,0.11374793]
[1760571977259,1.42756335,111120.0,111110.0,0.00058793]
[1760571977705,1.42756335,111120.0,111110.0,0.11374793]
[1760571978317,1.42756335,111120.0,111110.0,0.00058793]
[1760571978554,1.42756335,111120.0,111110.0,0.11374793]
[1760571979287,1.40233238,111120.0,111110.0,0.11374793]
[1760571980796,1.40233238,111120.0,111110.0,0.00058793]
[1760571981006,1.42757061,111120.0,111110.0,0.11374793]
[1760571981192,1.41915787,111120.0,111110.0,0.11374793]
[1760571981611,1.40233238,111120.0,111110.0,0.11374793]
[1760571982052,1.41915826,111120.0,111110.0,0.11374793]
[1760571982271,1.4275712,111120.0,111110.0,0.00058793]
[1760571982486,1.40233238,111120.0,111110.0,0.11374793]
[1760571982708,1.42757255,111120.0,111110.0,0.11374793]
[1760571982944,1.42757255,111120.0,111110.0,0.00058793]
[1760571983369,1.42757255,111120.0,111110.0,0.11374793]
[1760571983798,1.42757255,111120.0,111110.0,0.00058793]
[1760571984035,1.42757255,111120.0,111110.0,0.11374793]
[1760571984664,1.04193599,111120.0,111110.0,0.00058793]
[1760571984881,1.04193599,111120.0,111110.0,0.11374793]
[1760571985097,1.42757255,111120.0,111110.0,0.00058793]
[1760571985563,1.42657255,111120.0,111110.0,0.11374793]
[1760571985768,0.65429943,111120.0,111110.0,0.11374793]
[1760571985980,1.03993599,111120.0,111110.0,0.11378793]
[1760571986189,1.03993599,111120.0,111110.0,0.00058793]
[1760571986396,1.42557255,111120.0,111110.0,0.11378793]
[1760571987573,1.03993599,111120.0,111110.0,0.11378793]
[1760571988311,1.03993599,111120.0,111110.0,0.00058793]
[1760571988525,0.65429943,111120.0,111110.0,0.11378793]
[1760571988734,0.56460931,111120.0,111110.0,0.11378793]
[1760571989174,0.56460931,111120.0,111110.0,0.00058793]
[1760571989390,0.56460931,111120.0,111110.0,0.11378793]
[1760571989790,0.56460931,111120.0,111110.0,0.18058973]
[1760571990016,0.56460931,111120.0,111110.0,0.11378793]
[1760571991044,0.56460931,111120.0,111110.0,0.29378973]
[1760571991235,0.56460931,111120.0,111110.0,0.00058793]
[1760571991435,0.56460931,111120.0,111110.0,0.11378793]
[1760571992345,0.56460931,111120.0,111110.0,0.29378973]
[1760571993839,0.56462747,111120.0,111110.0,0.29378973]
[1760571994044,0.56462747,111120.0,111110.0,0.29374973]
[1760571994255,0.56462747,111120.0,111110.0,0.18058973]
[1760571994460,0.38464187,111120.0,111110.0,0.29374973]
[1760571994671,0.00843155,111120.0,111110.0,0.67938629]
[1760571994849,0.51997034,111130.0,111120.0,0.1799856]
[1760571995052,0.65433475,111130.0,111120.0,0.1799856]
[1760571995254,0.65433475,111130.0,111120.0,0.11316]
[1760571995638,1.03997131,111130.0,111120.0,0.11316]
[1760571995845,0.1799856,111120.0,111110.0,0.56622629]
[1760571996032,0.1799856,111120.0,111110.0,0.00058793]
[1760571996241,0.1799856,111120.0,111110.0,0.11374793]
[1760571996433,0.56562216,111120.0,111110.0,0.11374793]
[1760571996632,0.56562216,111120.0,111110.0,0.00058793]
[1760571996851,0.56562216,111120.0,111110.0,0.11374793]
[1760571998237,0.56562216,111120.0,111110.0,0.29374973]
[1760571998438,0.1799856,111120.0,111110.0,0.18058973]
[1760571998642,0.1799856,111120.0,111110.0,0.29374973]
[1760571999332,0.1799856,111120.0,111110.0,0.11374793]
[1760571999479,0.1799856,111120.0,111110.0,0.29374973]
[1760572000034,0.1799856,111120.0,111110.0,0.11374793]
[1760572000253,0.96810937,111120.0,111110.0,0.00058793]
[1760572000455,1.05779949,111120.0,111110.0,0.11374793]
[1760572000689,1.40622503,111120.0,111110.0,0.00058793]
[1760572000838,1.42563839,111120.0,111110.0,0.00058793]
[1760572001040,1.42563896,111120.0,111110.0,0.11374793]
[1760572001204,1.44991725,111120.0,111110.0,0.11374793]
[1760572001406,1.44991725,111120.0,111110.0,0.00058793]
[1760572001694,1.44991725,111120.0,111110.0,0.11374793]
[1760572002733,1.45091725,111120.0,111110.0,0.11374793]
[1760572002882,1.45191725,111120.0,111110.0,0.11374793]
[1760572003399,1.06612904,111120.0,111110.0,0.11374793]
[1760572003754,1.06612904,111120.0,111110.0,0.00058793]
[1760572003953,1.06612904,111120.0,111110.0,0.11374793]
[1760572004158,1.06613666,111120.0,111110.0,0.11374793]
[1760572004593,1.06613984,111120.0,111110.0,0.11374793]
[1760572005392,1.0661449,111120.0,111110.0,0.11374793]
[1760572006444,0.65638404,111120.0,111110.0,0.11374793]
[1760572006769,0.65638404,111120.0,111110.0,0.29374973]
[1760572007425,0.65438404,111120.0,111110.0,0.11374793]
[1760572007740,0.65438404,111120.0,111110.0,0.00058793]
[1760572007889,0.31438404,111120.0,111110.0,0.29374973]
[1760572008094,0.29496328,111120.0,111110.0,0.29374973]
[1760572008644,0.28653399,111120.0,111110.0,0.29374973]
[1760572009863,0.28653399,111120.0,111110.0,0.11374793]
[1760572011778,0.29496328,111120.0,111110.0,0.11374793]
[1760572012519,0.29496328,111120.0,111110.0,0.00058793]
[1760572012723,0.29496328,111120.0,111110.0,0.11374793]
[1760572013813,0.29496328,111120.0,111110.0,0.00058793]
[1760572013986,0.29496328,111120.0,111110.0,0.11374793]
[1760572015906,0.29496328,111120.0,111110.0,0.00058793]
[1760572016129,0.29496328,111120.0,111110.0,0.11374793]
[1760572016664,0.29496328,111120.0,111110.0,0.00058793]
[1760572016879,0.29496328,111120.0,111110.0,0.11370793]
[1760572017287,0.68044819,111120.0,111110.0,0.00058793]
[1760572017525,0.69986895,111120.0,111110.0,0.11374793]
[1760572017943,0.69986895,111120.0,111110.0,0.00058793]
[1760572018138,0.31438404,111120.0,111110.0,0.11374793]
[1760572018289,0.29496328,111120.0,111110.0,0.11374793]
[1760572019169,0.68044819,111120.0,111110.0,0.11374793]
[1760572019296,0.69986895,111120.0,111110.0,0.11374793]
[1760572019492,0.69143966,111120.0,111110.0,0.11374793]
[1760572019723,0.69987168,111120.0,111110.0,0.11374793]
[1760572020123,0.69987168,111120.0,111110.0,0.11370793]
[1760572020340,1.03987168,111120.0,111110.0,0.00058793]
[1760572020508,1.03987168,111120.0,111110.0,0.11370793]
[1760572020704,1.06693128,111120.0,111110.0,0.11370793]
[1760572020947,0.68144637,111120.0,111110.0,0.11370793]
[1760572021208,0.68144649,111120.0,111110.0,0.00058793]
[1760572021427,1.0669314,111120.0,111110.0,0.11374793]
[1760572021630,1.0679314,111120.0,111110.0,0.11374793]
[1760572021856,1.0679314,111120.0,111110.0,0.00058793]
[1760572021857,1.53045065,111120.0,111110.0,0.00058793]
[1760572022034,1.51106302,111120.0,111110.0,0.11374793]
[1760572023722,1.51106302,111120.0,111110.0,0.00058793]
[1760572023925,1.51106302,111120.0,111110.0,0.11374793]
[1760572025082,1.53881249,111120.0,111110.0,0.00058793]
[1760572025278,1.54724114,111120.0,111110.0,0.11374793]
[1760572028445,1.54724114,111120.0,111110.0,0.00058793]
[1760572028660,1.54724114,111120.0,111110.0,0.11374793]
[1760572029407,1.54724114,111120.0,111110.0,0.00058793]
[1760572029609,1.54724114,111120.0,111110.0,0.11374793]
[1760572029814,1.54724114,111120.0,111110.0,0.00058793]
[1760572030217,0.1800342,111090.0,111070.0,0.0717521]
[1760572030420,0.1800342,111090.0,111070.0,0.25181872]
[1760572030421,0.18005041,111080.0,111070.0,0.25181872]
[1760572030891,0.18005041,111080.0,111070.0,0.18006662]
[1760572031082,0.18005041,111080.0,111070.0,0.29322662]
[1760572031424,0.18010036,111080.0,111070.0,0.18006662]
[1760572031643,0.18010036,111080.0,111070.0,0.29422662]
[1760572031850,0.18010036,111080.0,111070.0,0.29418662]
[1760572032060,0.18010036,111080.0,111070.0,0.18106662]
[1760572032222,0.18010036,111080.0,111070.0,0.29422662]
[1760572032769,0.18010036,111080.0,111070.0,0.29418662]
[1760572033118,0.18010036,111080.0,111070.0,0.29518662]
[1760572033323,4.995e-05,111080.0,111070.0,0.29418662]
[1760572033561,0.18010036,111080.0,111070.0,0.29318662]
[1760572033984,0.26172584,111090.0,111070.0,0.29318662]
[1760572034128,0.26172584,111090.0,111070.0,0.2933367]
[1760572034571,0.18005041,111080.0,111070.0,0.2933367]
[1760572036136,0.26172584,111090.0,111080.0,0.18005041]
[1760572036336,0.26172584,111090.0,111080.0,0.11312]
[1760572036538,0.26172584,111090.0,111070.0,0.56570161]
[1760572036740,0.26172584,111090.0,111080.0,0.11312]
[1760572037146,0.26172584,111090.0,111070.0,0.56570161]
[1760572037353,0.26172584,111090.0,111080.0,0.29317041]
[1760572037897,0.21609855,111100.0,111090.0,0.1800342]
[1760572037898,0.55608385,111100.0,111090.0,0.1800342]
[1760572038121,0.61870902,111100.0,111090.0,0.29433029]
[1760572038328,0.65485668,111100.0,111090.0,0.00117609]
[1760572038606,0.65485668,111100.0,111090.0,0.29433029]
[1760572039068,0.65485668,111100.0,111090.0,0.11429609]
[1760572039280,0.65485668,111100.0,111090.0,0.00117609]
[1760572039535,0.65485668,111100.0,111090.0,0.11429609]
[1760572040840,0.65485668,111100.0,111090.0,0.00117609]
[1760572041259,0.65485668,111100.0,111090.0,0.11429609]
[1760572041682,0.65485668,111100.0,111090.0,0.00117609]
[1760572041910,0.65485668,111100.0,111090.0,0.11429609]
[1760572042351,0.67170647,111100.0,111090.0,0.11429609]
[1760572042691,0.65485668,111100.0,111090.0,0.11429609]
[1760572043092,0.67170647,111100.0,111090.0,0.11429609]
[1760572043480,0.65485668,111100.0,111090.0,0.11429609]
[1760572044386,0.67171126,111100.0,111090.0,0.11429609]
[1760572044589,0.65485668,111100.0,111090.0,0.00117609]
[1760572044831,0.65485668,111100.0,111090.0,0.11429609]
[1760572045172,0.65485668,111100.0,111090.0,0.00117609]
[1760572045373,0.65485668,111100.0,111090.0,0.11429609]
[1760572046392,0.67172013,111100.0,111090.0,0.11429609]
[1760572047153,0.65485668,111100.0,111090.0,0.11429609]
[1760572047350,0.67172013,111100.0,111090.0,0.11429609]
[1760572048231,0.69959324,111100.0,111090.0,0.11429609]
[1760572048634,0.69959324,111100.0,111090.0,0.11425609]
[1760572048849,0.69959324,111100.0,111090.0,0.00117609]
[1760572049069,0.69959324,111100.0,111090.0,0.11425609]
[1760572050726,0.69959976,111100.0,111090.0,0.11425609]
[1760572051541,0.69959976,111100.0,111090.0,0.00117609]
[1760572051743,0.69959976,111100.0,111090.0,0.11425609]
[1760572052362,0.69959976,111100.0,111090.0,0.00117609]
[1760572052563,0.69959976,111100.0,111090.0,0.11425609]
[1760572053638,0.69959976,111100.0,111090.0,0.00117609]
[1760572053838,0.69959976,111100.0,111090.0,0.11425609]
[1760572054671,1.08508467,111100.0,111090.0,0.00117609]
[1760572055002,1.11214855,111100.0,111090.0,0.11425609]
[1760572056007,1.11214855,111100.0,111090.0,0.00117609]
[1760572056212,1.11214855,111100.0,111090.0,0.11425609]
[1760572057424,0.72667024,111100.0,111090.0,0.11425609]
[1760572058422,0.72667024,111100.0,111090.0,0.00117609]
[1760572058619,1.11215515,111100.0,111090.0,0.11429609]
[1760572058838,0.72667024,111100.0,111090.0,0.11429609]
[1760572059643,0.72668797,111100.0,111090.0,0.11429609]
[1760572060601,0.72668787,111100.0,111090.0,0.11429609]
[1760572060803,0.72668787,111100.0,111090.0,0.00117609]
[1760572061005,0.72668787,111100.0,111090.0,0.11429609]
[1760572061420,0.72668787,111100.0,111090.0,0.00117609]
[1760572061629,0.72668787,111100.0,111090.0,0.11429609]
[1760572062349,1.11217278,111100.0,111090.0,0.00117609]
[1760572062572,1.68213093,111100.0,111090.0,0.00117609]
[1760572062781,1.6248199,111100.0,111090.0,0.11429609]
[1760572062981,1.60051347,111100.0,111090.0,0.00117609]
[1760572063191,1.59207238,111100.0,111090.0,0.00117609]
[1760572063402,1.59207238,111100.0,111070.0,0.00015008]
[1760572063403,0.52005041,111080.0,111070.0,0.00015008]
[1760572063624,1.42610494,111080.0,111070.0,0.11327008]
[1760572063832,1.42610494,111080.0,111070.0,0.00015008]
[1760572064052,1.51578702,111080.0,111070.0,0.00015008]
[1760572064270,2.03151359,111080.0,111070.0,0.00015008]
[1760572064482,0.52009905,111050.0,111040.0,0.05404]
[1760572064714,1.01246848,111050.0,111040.0,0.16770058]
[1760572065425,0.62667025,111050.0,111040.0,0.05454058]
[1760572065638,0.62663874,111050.0,111040.0,0.05454058]
[1760572065848,0.62663874,111050.0,111040.0,0.16770058]
[1760572066049,0.10653969,111050.0,111040.0,0.16770058]
[1760572066304,0.28663874,111050.0,111040.0,0.16770058]
[1760572066523,0.10653969,111050.0,111040.0,0.34781585]
[1760572066724,0.28663874,111050.0,111040.0,0.16770058]
[1760572066937,0.26978917,111050.0,111040.0,0.05454058]
[1760572067144,0.26978917,111050.0,111040.0,0.16770058]
[1760572067359,0.13721487,111050.0,111040.0,0.16770058]
[1760572067808,0.13721487,111050.0,111040.0,0.05454058]
[1760572068014,0.13721487,111050.0,111040.0,0.16770058]
[1760572070381,0.13721487,111050.0,111040.0,0.05454058]
[1760572070585,0.13721487,111050.0,111040.0,0.17064238]
[1760572070986,0.13721487,111050.0,111040.0,0.05748238]
[1760572071190,0.13721487,111050.0,111040.0,0.17064238]
[1760572071970,0.13721487,111050.0,111040.0,0.05748238]
[1760572072116,0.13721487,111050.0,111040.0,0.17064238]
[1760572072524,0.5230131,111050.0,111040.0,0.05748238]
[1760572072990,0.5230131,111050.0,111040.0,0.17064238]
[1760572073392,0.5230131,111050.0,111040.0,0.05748238]
[1760572073641,0.5230131,111050.0,111040.0,0.17064238]
[1760572074941,0.5230131,111050.0,111040.0,0.05748238]
[1760572075184,0.5230131,111050.0,111040.0,0.17064238]
[1760572075813,0.13721487,111050.0,111040.0,0.05748238]
[1760572076013,0.5230131,111050.0,111040.0,0.17064238]
[1760572076224,0.13721487,111050.0,111040.0,0.17064238]
[1760572076447,0.13721487,111050.0,111040.0,0.05748238]
[1760572076665,0.13721487,111050.0,111040.0,0.17064238]
[1760572076873,0.13721487,111050.0,111040.0,0.11660238]
[1760572077647,0.13721487,111050.0,111040.0,0.00344238]
[1760572077844,0.13721487,111050.0,111040.0,0.11660238]
[1760572078195,0.13721487,111050.0,111040.0,0.00344238]
[1760572078400,0.13721487,111050.0,111040.0,0.11660238]
[1760572078602,0.13721487,111050.0,111040.0,0.11656238]
[1760572079443,0.13721487,111050.0,111040.0,0.00344238]
[1760572079623,0.13721487,111050.0,111040.0,0.11656238]
[1760572080808,0.61232607,111060.0,111040.0,1.06827411]
[1760572080809,0.04643087,111060.0,111040.0,1.06827411]
[1760572081015,0.62658578,111060.0,111050.0,0.56589728]
[1760572081215,0.60977992,111060.0,111050.0,0.56589728]
[1760572081373,0.62658629,111060.0,111050.0,0.11316]
[1760572082164,0.62658629,111060.0,111050.0,0.11312]
[1760572082371,0.62658629,111060.0,111050.0,0.56589728]
[1760572082583,0.62658629,111060.0,111050.0,0.67901728]
[1760572082999,0.62658629,111060.0,111050.0,0.56589728]
[1760572083488,0.62658629,111060.0,111050.0,0.67901728]
[1760572084124,0.62658629,111060.0,111050.0,0.11312]
[1760572085141,0.18009905,111050.0,111040.0,0.18061585]
[1760572085352,0.18009905,111050.0,111040.0,0.29373585]
[1760572085767,0.18009905,111050.0,111040.0,0.18061585]
[1760572086013,0.18009905,111050.0,111040.0,0.11366058]
[1760572086224,0.18009905,111050.0,111040.0,0.29377585]
[1760572086539,0.19692961,111050.0,111040.0,0.29373585]
[1760572086672,0.19692961,111050.0,111040.0,0.29667765]
[1760572086894,0.19692961,111050.0,111040.0,0.18355765]
[1760572087112,0.19692961,111050.0,111040.0,0.68247588]
[1760572088172,0.19692961,111050.0,111040.0,0.56935588]
[1760572088371,0.19692961,111050.0,111040.0,0.68247588]
[1760572088700,0.19692961,111050.0,111040.0,0.29667765]
[1760572088900,0.19692961,111050.0,111040.0,0.11656238]
[1760572089307,0.19692961,111050.0,111040.0,0.00344238]
[1760572089510,0.19692961,111050.0,111040.0,0.29667765]
[1760572089957,0.19692961,111050.0,111040.0,0.18355765]
[1760572090201,0.19692961,111050.0,111040.0,0.68247588]
[1760572090615,0.01683056,111050.0,111040.0,0.68247588]
[1760572091198,0.64599365,111060.0,111040.0,0.68247588]
[1760572091404,0.18009905,111050.0,111040.0,0.56641408]
[1760572091649,0.18009905,111050.0,111040.0,0.67953408]
[1760572091650,0.19692961,111050.0,111040.0,0.67953408]
[1760572092323,0.19692961,111050.0,111040.0,0.56641408]
[1760572092675,0.19692961,111050.0,111040.0,0.67953408]
[1760572093335,0.19692961,111050.0,111040.0,0.56641408]
[1760572093763,0.19692961,111050.0,111040.0,0.67953408]
[1760572094813,0.19692961,111050.0,111040.0,0.56641408]
[1760572095018,0.19692961,111050.0,111040.0,0.67953408]
[1760572095904,0.19692961,111050.0,111040.0,0.49941881]
[1760572096133,0.58272784,111050.0,111040.0,0.11362058]
[1760572096342,0.61055474,111050.0,111040.0,0.11362058]
[1760572096544,0.61055474,111050.0,111040.0,0.00050058]
[1760572096842,0.61055474,111050.0,111040.0,0.11656238]
[1760572098026,0.61055474,111050.0,111040.0,0.00344238]
[1760572098255,0.61055474,111050.0,111040.0,0.11656238]
[1760572099757,0.22475651,111050.0,111040.0,0.11656238]
[1760572099969,0.20537334,111050.0,111040.0,0.11656238]
[1760572100167,0.00844373,111050.0,111040.0,0.11656238]
[1760572100391,0.18854278,111050.0,111040.0,0.11656238]
[1760572103190,0.18854479,111050.0,111040.0,0.11656238]
[1760572103417,0.67496132,111060.0,111040.0,0.11656238]
[1760572103611,0.18009905,111050.0,111040.0,0.18061585]
[1760572104094,0.18009905,111050.0,111040.0,0.49941881]
[1760572104344,0.18009905,111050.0,111040.0,0.56641408]
[1760572104549,0.18009905,111050.0,111040.0,0.67953408]
[1760572107596,0.18009905,111050.0,111040.0,0.29373585]
[1760572107833,0.18009905,111050.0,111040.0,0.67953408]
[1760572108311,0.28916309,111060.0,111040.0,0.67953408]
[1760572108500,0.18009905,111050.0,111040.0,0.67953408]
[1760572110154,0.18009905,111050.0,111040.0,0.11362058]
[1760572110367,0.18009905,111050.0,111040.0,0.67953408]
[1760572110617,0.18009905,111050.0,111040.0,0.68247588]
[1760572111992,0.19699542,111050.0,111040.0,0.68247588]
[1760572112460,0.19699542,111050.0,111010.0,0.0004]
[1760572112461,0.34,111040.0,111010.0,0.0004]
[1760572112586,1.29174418,111020.0,111010.0,0.11361022]
[1760572112791,1.39833067,111020.0,111010.0,0.11365022]
[1760572112991,0.55651429,111020.0,111010.0,0.11365022]
[1760572113228,0.03636657,111020.0,111010.0,0.67961239]
[1760572113425,0.01689637,111020.0,111010.0,0.67961239]
[1760572113636,0.21678227,111030.0,111010.0,0.56645239]
[1760572113892,0.23366422,111030.0,111020.0,0.38579823]
[1760572114094,0.23366422,111030.0,111020.0,0.49895823]
[1760572114461,0.23366422,111030.0,111010.0,0.38628845]
[1760572114462,0.18014772,111020.0,111010.0,0.38628845]
[1760572114665,0.24586013,111030.0,111010.0,0.67965224]
[1760572114913,0.18014772,111020.0,111010.0,0.56645239]
[1760572115041,0.18014772,111020.0,111010.0,0.67965239]
[1760572115407,0.18014772,111020.0,111010.0,0.56645239]
[1760572115545,0.18014772,111020.0,111010.0,0.67965239]
[1760572115746,0.21678227,111030.0,111010.0,0.67965239]
[1760572116084,0.57365751,111030.0,111010.0,0.67965239]
[1760572116405,0.18014772,111020.0,111010.0,0.67965239]
[1760572116617,0.55678227,111030.0,111010.0,0.67965239]
[1760572116819,0.57365421,111030.0,111010.0,0.67965239]
[1760572117062,0.23365421,111030.0,111010.0,0.67965239]
[1760572117186,0.18014772,111020.0,111010.0,0.67965239]
[1760572118009,1.29174418,111020.0,111010.0,0.11545618]
[1760572118211,0.95189445,111020.0,111010.0,0.00225618]
[1760572118423,0.95189445,111020.0,111010.0,0.11553618]
[1760572119576,1.33769268,111020.0,111010.0,0.00225618]
[1760572119785,1.8702875,111020.0,111010.0,0.00225618]
[1760572120027,6.86936331,111020.0,111010.0,0.00225618]
[1760572120190,6.85249267,111020.0,111010.0,0.00225618]
[1760572120882,6.85249267,111020.0,111000.0,0.00364]
[1760572120883,0.18016394,111010.0,111000.0,0.00364]
[1760572121117,0.52018018,111000.0,110990.0,0.0004]
[1760572121454,1.38146676,111000.0,110990.0,0.09205013]
[1760572121666,1.41054462,111000.0,110990.0,0.09205013]
[1760572121880,1.41054462,111000.0,110990.0,0.11377013]
[1760572122092,0.99566853,111000.0,110990.0,0.11377013]
[1760572122372,0.99566853,111000.0,110990.0,0.00049013]
[1760572122584,0.99566853,111000.0,110990.0,0.11377013]
[1760572123885,0.99566853,111000.0,110990.0,0.00049013]
[1760572124095,0.99566853,111000.0,110990.0,0.11377013]
[1760572124699,1.38146676,111000.0,110990.0,0.00049013]
[1760572124882,1.38146676,111000.0,110990.0,0.11377013]
[1760572125081,0.64117545,111000.0,110990.0,0.11377013]
[1760572125266,1.02697368,111000.0,110990.0,0.00049013]
[1760572125471,1.02747634,111000.0,110990.0,0.11377013]
[1760572126299,1.04444543,111000.0,110990.0,0.11377013]
[1760572126511,1.04444543,111000.0,110990.0,0.00049013]
[1760572126713,1.04444543,111000.0,110990.0,0.11377013]
[1760572127427,1.04444543,111000.0,110990.0,0.00049013]
[1760572127643,1.04444543,111000.0,110990.0,0.11377013]
[1760572127851,1.04444543,111000.0,110990.0,0.00049013]
[1760572128033,1.43074632,111000.0,110990.0,0.00049013]
[1760572128256,1.43074632,111000.0,110990.0,0.11377013]
[1760572128588,1.04444543,111000.0,110990.0,0.11377013]
[1760572128995,1.04444543,111000.0,110990.0,0.00049013]
[1760572129199,1.04444543,111000.0,110990.0,0.11377013]
[1760572129881,1.04444543,111000.0,110990.0,0.00049013]
[1760572130079,1.04444543,111000.0,110990.0,0.11377013]
[1760572130286,5.21637869,110990.0,110980.0,0.0004]
[1760572130534,5.70422433,110990.0,110980.0,0.00055025]
[1760572130709,5.72119342,110990.0,110980.0,0.00055025]
[1760572132394,5.72219342,110990.0,110980.0,0.00055025]
[1760572132812,5.71219342,110990.0,110980.0,0.00231692]
[1760572133010,0.65718742,110990.0,110980.0,0.00231692]
[1760572133211,0.27088653,110990.0,110980.0,0.00231692]
[1760572133413,0.65718742,110990.0,110980.0,0.00231692]
[1760572133818,0.65618742,110990.0,110980.0,0.11567692]
[1760572134685,0.67501122,110990.0,110980.0,0.00231692]
[1760572135386,0.96440132,110990.0,110980.0,0.00231692]
[1760572140381,1.3605836,110990.0,110980.0,0.00231692]
[1760572140554,6.3417598,110990.0,110980.0,1e-08]
[1760572140760,6.36897933,110990.0,110980.0,1e-08]
[1760572141394,6.36797933,110990.0,110980.0,1e-08]
[1760572141843,6.36997933,110990.0,110980.0,1e-08]
[1760572142220,6.36797933,110990.0,110980.0,1e-08]
[1760572142420,5.69328834,110990.0,110980.0,1e-08]
[1760572142631,6.36997933,110990.0,110980.0,1e-08]
[1760572143826,6.52633069,110990.0,110980.0,1e-08]
[1760572144389,6.46284933,110990.0,110980.0,1e-08]
[1760572144599,6.2149502,110990.0,110980.0,1e-08]
[1760572144801,6.39514661,110990.0,110980.0,1e-08]
[1760572144997,6.39614661,110990.0,110980.0,1e-08]
[1760572145590,6.39514661,110990.0,110980.0,1e-08]
[1760572145792,6.39714661,110990.0,110980.0,1e-08]
[1760572146199,6.40555313,110990.0,110980.0,1e-08]
[1760572147898,0.52021265,110980.0,110970.0,1e-08]
[1760572148099,6.4670444,110980.0,110970.0,0.00050122]
[1760572148365,6.48642332,110980.0,110970.0,0.00050122]
[1760572149222,6.48742332,110980.0,110970.0,0.00050122]
[1760572149445,6.48842332,110980.0,110970.0,0.00050122]
[1760572150324,5.65128117,110970.0,110960.0,1e-08]
[1760572150464,6.66373129,110970.0,110960.0,4.999e-05]
[1760572151488,6.66573807,110970.0,110960.0,4.999e-05]
[1760572152577,6.66773807,110970.0,110960.0,4.999e-05]
[1760572153476,6.66776196,110970.0,110960.0,4.999e-05]
[1760572154641,5.52024513,110960.0,110950.0,0.0004]
[1760572154865,5.52024513,110960.0,110950.0,0.0005503]
[1760572154866,6.35926694,110960.0,110950.0,0.0005503]
[1760572155057,6.37809551,110960.0,110950.0,0.0005503]
[1760572155677,6.16432468,110960.0,110950.0,0.0005503]
[1760572155921,6.34556981,110960.0,110950.0,0.0005503]
[1760572156092,6.34656981,110960.0,110950.0,0.0005503]
[1760572157927,7.10324402,110960.0,110950.0,1e-08]
[1760572158148,6.4473816,110960.0,110950.0,1e-08]
[1760572158347,6.38275209,110960.0,110950.0,1e-08]
[1760572158556,0.2164599,110940.0,110930.0,1e-08]
[1760572158768,6.42548171,110940.0,110930.0,1e-08]
[1760572158966,6.42548171,110940.0,110910.0,0.0004]
[1760572158967,1.2311834,110920.0,110910.0,0.0004]
[1760572159286,1.40560514,110920.0,110910.0,0.0004]
[1760572159677,1.43443371,110920.0,110910.0,0.0004]
[1760572160257,1.46532282,110920.0,110910.0,0.0004]
[1760572160430,1.49863896,110920.0,110910.0,0.0004]
[1760572161101,1.46632282,110920.0,110910.0,0.0004]
[1760572161313,1.49862506,110920.0,110910.0,0.0004]
[1760572161528,1.49962506,110920.0,110910.0,0.0004]
[1760572162250,1.45111581,110920.0,110910.0,0.0004]
[1760572162894,1.49962506,110920.0,110910.0,0.0004]
[1760572163075,1.46732282,110920.0,110910.0,0.0004]
[1760572163485,1.46732282,110920.0,110910.0,1e-08]
[1760572163486,6.4823051,110920.0,110910.0,1e-08]
[1760572163730,5.58375264,110910.0,110900.0,0.0004]
[1760572163937,6.49507537,110910.0,110900.0,0.0004]
[1760572164134,6.46278767,110910.0,110900.0,0.0004]
[1760572164335,6.49506667,110910.0,110900.0,0.00511517]
[1760572165122,6.49606667,110910.0,110900.0,0.00511517]
[1760572165322,6.58474875,110910.0,110900.0,0.00511517]
[1760572165524,6.55346975,110910.0,110900.0,0.00511517]
[1760572165695,6.5707078,110910.0,110900.0,0.00511517]
[1760572166720,6.48002572,110910.0,110900.0,0.00511517]
[1760572167096,6.48102572,110910.0,110900.0,0.00511517]
[1760572168470,6.45378175,110910.0,110900.0,0.00511517]
[1760572168678,6.42378175,110910.0,110900.0,0.00511517]
[1760572171188,6.43378175,110910.0,110900.0,0.00511517]
[1760572171390,6.46102572,110910.0,110900.0,0.00511517]
[1760572173332,0.18034265,110900.0,110890.0,0.0004]
[1760572173520,1.40554305,110900.0,110890.0,0.00055045]
[1760572174603,1.40654305,110900.0,110890.0,0.00055045]
[1760572174854,1.40754305,110900.0,110890.0,0.00055045]
[1760572175057,1.41754305,110900.0,110890.0,0.00055045]
[1760572175468,1.12996785,110900.0,110890.0,0.00055045]
[1760572176295,1.15721182,110900.0,110890.0,0.00055045]
[1760572177245,1.10879718,110900.0,110890.0,0.00055045]
[1760572179046,1.10879718,110900.0,110890.0,0.00114011]
[1760572179481,1.17346678,110900.0,110890.0,0.00114011]
[1760572184414,0.18035891,110890.0,110880.0,0.0004]
[1760572184629,0.74208487,110890.0,110880.0,0.0004]
[1760572184842,0.74208487,110890.0,110880.0,0.00098974]
[1760572185489,0.69353711,110890.0,110880.0,0.00098974]
[1760572186169,0.69453711,110890.0,110880.0,0.00098974]
[1760572186396,0.69553711,110890.0,110880.0,0.00098974]
[1760572187473,0.76018227,110890.0,110880.0,0.00098974]
[1760572188223,0.37309092,110890.0,110880.0,0.00098974]
[1760572188427,0.18037518,110880.0,110870.0,0.0004]
[1760572188744,1.5711882,110880.0,110870.0,0.0004]
[1760572188942,1.18409685,110880.0,110870.0,0.0004]
[1760572189142,1.18409685,110880.0,110870.0,0.11424]
[1760572189378,1.9111882,110880.0,110870.0,0.0004]
[1760572189543,1.88270088,110880.0,110870.0,0.0004]
[1760572189732,1.88270088,110880.0,110870.0,0.11424]
[1760572189935,1.88270088,110880.0,110860.0,0.0004]
[1760572189936,0.52039144,110870.0,110860.0,0.0004]
[1760572190146,1.48544672,110870.0,110860.0,0.0004]
[1760572190341,1.5043405,110870.0,110860.0,0.0004]
[1760572190600,1.5043405,110870.0,110860.0,0.11424]
[1760572191130,1.50433797,110870.0,110860.0,0.11424]